bitfinex/quotes_BTCUSD_20260126
["timestamp","ask_amount","ask_price","bid_price","bid_amount"]
[1769444113423,0.03,87423.0,87413.0,0.4498453]
[1769444113763,0.03,87419.0,87413.0,0.47413054]
[1769444114399,0.17302154,87436.0,87415.0,0.4498453]
[1769444114400,0.06862273,87435.0,87415.0,0.4498453]
[1769444114614,0.01740853,87435.0,87417.0,0.47413054]
[1769444114770,0.03,87424.0,87417.0,0.47310685]
[1769444114970,0.16104682,87437.0,87412.0,0.0001834]
[1769444114971,0.03,87419.0,87412.0,0.0001834]
[1769444115887,0.03,87413.0,87407.0,0.4498453]
[1769444116102,1.14346914,87454.0,87379.0,0.02428524]
[1769444116103,0.03,87404.0,87379.0,0.02428524]
[1769444116326,0.03,87404.0,87382.0,0.02428524]
[1769444116524,0.03,87404.0,87385.0,0.4498453]
[1769444116752,0.03,87404.0,87381.0,0.01144413]
[1769444116753,0.03,87404.0,87388.0,0.02428524]
[1769444116953,0.03,87404.0,87391.0,0.4498453]
[1769444117172,0.03,87414.0,87393.0,0.4498453]
[1769444117287,0.01143981,87414.0,87396.0,0.02428524]
[1769444117484,0.01143981,87414.0,87397.0,0.47413054]
[1769444117897,0.02417318,87418.0,87397.0,0.47413054]
[1769444118100,0.02417318,87416.0,87397.0,0.47413054]
[1769444118299,0.29155019,87417.0,87397.0,0.47413054]
[1769444118300,0.05417318,87413.0,87397.0,0.47413054]
[1769444118514,0.05417318,87413.0,87397.0,0.52154359]
[1769444119074,0.03,87401.0,87397.0,0.52154359]
[1769444119259,0.03,87401.0,87397.0,0.47413054]
[1769444119457,0.03,87401.0,87385.0,0.42585086]
[1769444120063,0.03,87400.0,87385.0,0.42585086]
[1769444120647,0.03,87400.0,87387.0,0.42585086]
[1769444120995,0.03,87400.0,87390.0,0.02350598]
[1769444121211,0.03,87399.0,87391.0,0.44935684]
[1769444121581,0.02464297,87409.0,87391.0,0.44935684]
[1769444122157,0.03,87408.0,87391.0,0.44935684]
[1769444122476,0.11160278,87449.0,87391.0,0.47078654]
[1769444122477,0.54495016,87440.0,87391.0,0.47078654]
[1769444122680,0.54495016,87440.0,87395.0,0.42585086]
[1769444122681,0.28777234,87433.0,87395.0,0.42585086]
[1769444122881,0.28777234,87433.0,87392.0,0.01144269]
[1769444122882,0.02464297,87422.0,87398.0,0.02350598]
[1769444123078,0.02464297,87422.0,87401.0,0.42585086]
[1769444123079,0.03,87421.0,87401.0,0.42585086]
[1769444123282,0.05464297,87419.0,87401.0,0.42585086]
[1769444123724,0.03,87417.0,87401.0,0.42585086]
[1769444123919,0.03,87417.0,87388.0,0.05721609]
[1769444123920,0.01143902,87420.0,87345.0,0.02350598]
[1769444123921,0.02464297,87412.0,87345.0,0.02350598]
[1769444124136,0.02464297,87412.0,87328.0,0.0002]
[1769444124137,0.1042068,87366.0,87335.0,0.02350598]
[1769444124448,0.1042068,87366.0,87336.0,0.47132305]
[1769444124449,0.03,87338.0,87336.0,0.47132305]
[1769444124682,0.00597092,87345.0,87328.0,0.0002]
[1769444124865,0.195451,87329.0,87328.0,0.0002]
[1769444125082,0.03,87321.0,87316.0,0.02350598]
[1769444125249,0.02464297,87344.0,87313.0,0.000266]
[1769444125250,0.03,87317.0,87313.0,0.000266]
[1769444125452,0.03,87317.0,87296.0,0.02350598]
[1769444125616,0.03,87313.0,87292.0,0.0458]
[1769444126033,0.01145278,87315.0,87289.0,0.02350598]
[1769444126034,0.03,87303.0,87289.0,0.02350598]
[1769444126250,0.03,87303.0,87290.0,0.42585086]
[1769444126471,0.01145186,87322.0,87290.0,0.42585086]
[1769444126680,0.01145252,87317.0,87290.0,0.42585086]
[1769444126873,0.01145265,87316.0,87290.0,0.42585086]
[1769444127082,0.03,87310.0,87290.0,0.42585086]
[1769444127283,0.03,87297.0,87290.0,0.42585086]
[1769444127483,0.02464297,87320.0,87290.0,0.42585086]
[1769444127484,0.01145304,87313.0,87290.0,0.42585086]
[1769444127689,0.01145331,87311.0,87290.0,0.42585086]
[1769444127886,0.01145317,87312.0,87290.0,0.47083858]
[1769444128087,0.01145357,87309.0,87290.0,0.42585086]
[1769444128308,0.03,87297.0,87290.0,0.42585086]
[1769444128462,0.02400604,87316.0,87291.0,0.02350598]
[1769444128668,0.06871885,87313.0,87293.0,0.02350598]
[1769444128890,0.0735116,87316.0,87293.0,0.02350598]
[1769444128891,0.06205895,87316.0,87294.0,0.42651008]
[1769444129094,0.06205895,87316.0,87294.0,0.45001606]
[1769444129095,0.01145331,87311.0,87294.0,0.45001606]
[1769444129380,0.03,87311.0,87294.0,0.45001606]
[1769444129610,0.03,87303.0,87294.0,0.45001606]
[1769444130214,0.22904151,87321.0,87294.0,0.45001606]
[1769444130371,0.22904151,87321.0,87286.0,0.0001]
[1769444130372,0.01145304,87313.0,87302.0,0.02350598]
[1769444130574,0.01145304,87313.0,87300.0,0.4821365]
[1769444130575,0.04145344,87310.0,87303.0,0.45001606]
[1769444130775,0.01145094,87329.0,87303.0,0.02350598]
[1769444130971,0.01145199,87321.0,87304.0,0.45001606]
[1769444131210,0.0687114,87322.0,87304.0,0.45001606]
[1769444131412,0.06255966,87329.0,87304.0,0.45001606]
[1769444131611,0.01145252,87317.0,87304.0,0.45001606]
[1769444131786,0.01145213,87320.0,87304.0,0.45001606]
[1769444131987,0.01145147,87325.0,87304.0,0.45001606]
[1769444132207,0.01145121,87327.0,87312.0,0.02350598]
[1769444132444,0.01145108,87328.0,87316.0,0.02350598]
[1769444132652,0.001,87329.0,87319.0,0.42651008]
[1769444132873,0.001,87329.0,87293.0,0.22176]
[1769444132874,0.04,87319.0,87311.0,0.02350598]
[1769444133011,0.04,87319.0,87301.0,0.02350598]
[1769444133215,0.03,87319.0,87305.0,0.02350598]
[1769444133419,0.03,87317.0,87308.0,0.42651008]
[1769444133618,0.001,87329.0,87310.0,0.42651008]
[1769444133836,0.001,87329.0,87314.0,0.42651008]
[1769444134088,0.01145042,87333.0,87302.0,0.22652425]
[1769444134089,0.01145081,87330.0,87315.0,0.42651008]
[1769444134233,0.01145042,87333.0,87318.0,0.02350598]
[1769444134438,0.03,87330.0,87319.0,0.45001606]
[1769444134755,0.01145003,87336.0,87319.0,0.45001606]
[1769444134756,0.00899571,87344.0,87319.0,0.42651008]
[1769444134969,0.01144911,87343.0,87320.0,0.02350598]
[1769444135169,0.01144937,87341.0,87321.0,0.42651008]
[1769444135337,0.001,87330.0,87322.0,0.048584]
[1769444135534,0.001,87330.0,87320.0,0.02350598]
[1769444135729,0.03,87336.0,87320.0,0.02350598]
[1769444136345,0.03,87325.0,87320.0,0.02350598]
[1769444136546,0.03,87320.0,87307.0,0.02350598]
[1769444136930,0.03,87320.0,87303.0,0.17596]
[1769444136931,0.03,87314.0,87303.0,0.17596]
[1769444137138,0.01145239,87318.0,87303.0,0.17596]
[1769444137336,0.03,87308.0,87300.0,0.42651008]
[1769444137577,0.01145304,87313.0,87301.0,0.45001606]
[1769444137779,0.01145357,87309.0,87290.0,0.02350598]
[1769444137979,0.01145252,87317.0,87291.0,0.48916373]
[1769444138197,0.01145252,87317.0,87280.0,0.5279765]
[1769444138198,0.26965073,87297.0,87264.0,0.43904081]
[1769444138422,0.04123357,87349.0,87262.0,0.01145974]
[1769444138423,0.03,87287.0,87262.0,0.01145974]
[1769444138625,0.03,87287.0,87263.0,0.01188001]
[1769444138805,0.08737128,87311.0,87274.0,0.02350598]
[1769444138806,0.03,87286.0,87274.0,0.02350598]
[1769444139189,0.03,87286.0,87275.0,0.472938]
[1769444139399,0.06186038,87303.0,87275.0,0.472938]
[1769444139400,0.03,87284.0,87275.0,0.472938]
[1769444139748,0.01145449,87302.0,87275.0,0.44943202]
[1769444139955,0.01145383,87307.0,87282.0,0.02350598]
[1769444140152,0.01145357,87309.0,87286.0,0.02350598]
[1769444140361,0.03,87308.0,87289.0,0.44943202]
[1769444140556,0.03,87306.0,87292.0,0.02350598]
[1769444140758,0.22906185,87313.0,87280.0,0.4821365]
[1769444140759,0.01145226,87319.0,87295.0,0.44943202]
[1769444140965,0.1,87360.0,87272.0,0.04123357]
[1769444140966,0.0114516,87324.0,87299.0,0.44943202]
[1769444141164,0.01145173,87323.0,87303.0,0.44943202]
[1769444141386,0.01145186,87322.0,87306.0,0.02350598]
[1769444141586,0.03,87319.0,87307.0,0.44943202]
[1769444141790,0.04145226,87319.0,87307.0,0.44943202]
[1769444141989,0.19161799,87387.0,87299.0,0.44943202]
[1769444141990,0.03,87312.0,87299.0,0.44943202]
[1769444142200,0.03,87312.0,87302.0,0.02350598]
[1769444142382,0.03,87312.0,87305.0,0.44943202]
[1769444142762,0.03,87312.0,87305.0,0.472938]
[1769444142962,0.03,87312.0,87297.0,0.176]
[1769444142963,0.001,87324.0,87312.0,0.01]
[1769444143163,0.03,87325.0,87312.0,0.01]
[1769444143364,0.01145121,87327.0,87316.0,0.02350598]
[1769444143609,0.01145121,87327.0,87273.0,0.02350598]
[1769444143610,0.01145449,87302.0,87273.0,0.02350598]
[1769444143815,0.01145449,87302.0,87267.0,0.14901908]
[1769444143816,0.01145462,87301.0,87276.0,0.02350598]
[1769444143962,0.01145501,87298.0,87280.0,0.02350598]
[1769444144182,0.03,87297.0,87283.0,0.44923202]
[1769444144386,0.01145449,87302.0,87286.0,0.02350598]
[1769444144583,0.01145449,87302.0,87274.0,0.17604]
[1769444144584,0.01145488,87299.0,87289.0,0.44923202]
[1769444145240,0.06872812,87301.0,87289.0,0.44923202]
[1769444145241,0.01145462,87301.0,87289.0,0.44923202]
[1769444145394,0.01145449,87302.0,87274.0,0.17604]
[1769444145395,0.01145449,87302.0,87292.0,0.02350598]
[1769444145599,0.01145449,87302.0,87293.0,0.44465012]
[1769444145799,0.01145396,87306.0,87293.0,0.44465012]
[1769444146018,0.01145213,87320.0,87295.0,0.4331955]
[1769444146216,0.03,87308.0,87281.0,0.01145724]
[1769444146454,0.03,87308.0,87285.0,0.4331955]
[1769444146629,0.03,87308.0,87288.0,0.02350598]
[1769444146829,0.01145278,87315.0,87291.0,0.4331955]
[1769444147058,0.01145278,87315.0,87283.0,0.01145698]
[1769444147059,0.01145278,87315.0,87294.0,0.02350598]
[1769444147289,0.03,87314.0,87297.0,0.4331955]
[1769444147465,0.03,87314.0,87287.0,0.4331955]
[1769444147705,0.03,87314.0,87290.0,0.02350598]
[1769444147869,0.03,87314.0,87290.0,0.4821365]
[1769444148071,0.01145068,87331.0,87297.0,0.4331955]
[1769444148275,0.41674578,87340.0,87301.0,0.4331955]
[1769444148276,0.03,87328.0,87301.0,0.4331955]
[1769444148528,0.03,87328.0,87306.0,0.47368553]
[1769444148684,0.04145108,87328.0,87309.0,0.02277083]
[1769444148874,0.04145108,87328.0,87313.0,0.02277083]
[1769444148875,0.03,87326.0,87313.0,0.02277083]
[1769444149075,0.03,87326.0,87314.0,0.47236941]
[1769444149277,0.03,87324.0,87314.0,0.46657652]
[1769444149608,0.0414516,87324.0,87314.0,0.46657652]
[1769444150016,0.03,87324.0,87314.0,0.46657652]
[1769444150226,0.03,87322.0,87314.0,0.46657652]
[1769444150405,0.03,87322.0,87294.0,0.01145554]
[1769444150406,0.0114516,87324.0,87274.0,0.04584]
[1769444150407,0.03,87297.0,87274.0,0.04584]
[1769444150768,0.03,87289.0,87276.0,0.47368553]
[1769444150884,0.03,87285.0,87276.0,0.47368553]
[1769444151085,0.03,87285.0,87277.0,0.17604]
[1769444151588,0.01145567,87293.0,87278.0,0.47368553]
[1769444151754,0.0114554,87295.0,87279.0,0.02277083]
[1769444151957,0.0414558,87292.0,87280.0,0.49645636]
[1769444152340,0.03,87292.0,87280.0,0.49645636]
[1769444152503,0.03,87292.0,87281.0,0.02373451]
[1769444152707,0.03,87292.0,87281.0,0.47368553]
[1769444153128,0.03,87291.0,87281.0,0.47368553]
[1769444153564,0.04145632,87288.0,87281.0,0.17378833]
[1769444153768,0.03,87285.0,87281.0,0.17378833]
[1769444154324,0.03,87285.0,87272.0,0.47368553]
[1769444154533,0.03,87285.0,87276.0,0.17604]
[1769444154534,0.04216488,87285.0,87276.0,0.17604]
[1769444154744,0.0114558,87292.0,87276.0,0.17604]
[1769444154745,0.03,87289.0,87277.0,0.47368553]
[1769444155370,0.15110807,87324.0,87273.0,0.64976553]
[1769444155371,0.031,87285.0,87273.0,0.64976553]
[1769444155568,0.031,87285.0,87274.0,0.47368553]
[1769444155772,0.01145593,87291.0,87274.0,0.47368553]
[1769444156009,0.01145593,87291.0,87277.0,0.02277083]
[1769444156251,0.01145593,87291.0,87260.0,0.4935965]
[1769444156252,0.00916462,87291.0,87258.0,0.0022036]
[1769444156456,0.03,87285.0,87269.0,0.49645636]
[1769444156887,0.03,87283.0,87269.0,0.49645636]
[1769444157107,0.22912485,87289.0,87258.0,0.0022036]
[1769444157108,0.03,87267.0,87259.0,0.02277083]
[1769444157359,0.03,87267.0,87260.0,0.69560553]
[1769444157768,0.03,87267.0,87258.0,0.02497443]
[1769444157769,0.03,87267.0,87261.0,0.64976553]
[1769444157992,0.03,87267.0,87261.0,0.47368553]
[1769444158250,0.16672534,87342.0,87258.0,0.02497443]
[1769444158251,0.03,87266.0,87263.0,0.47368553]
[1769444158479,0.0114575,87279.0,87262.0,0.24469083]
[1769444158693,0.0114575,87279.0,87258.0,0.0022036]
[1769444158694,0.0502464,87286.0,87258.0,0.0022036]
[1769444158911,0.01145816,87274.0,87258.0,0.1782836]
[1769444159165,0.05730067,87259.0,87258.0,0.0011018]
[1769444159378,0.01145961,87263.0,87253.0,0.47009624]
[1769444159605,0.01145882,87269.0,87253.0,0.47009624]
[1769444159606,0.0572953,87268.0,87253.0,0.47009624]
[1769444159848,0.01145869,87270.0,87253.0,0.47009624]
[1769444160040,0.01145961,87263.0,87248.0,0.22192]
[1769444160261,0.03,87256.0,87249.0,0.17608]
[1769444160471,0.49103023,87268.0,87250.0,0.17608]
[1769444160686,0.45822014,87295.0,87251.0,0.47368553]
[1769444160687,0.02289267,87270.0,87251.0,0.47368553]
[1769444160898,0.01145816,87274.0,87250.0,0.17608]
[1769444160899,0.01145816,87274.0,87252.0,0.02277083]
[1769444161129,0.01145856,87271.0,87255.0,0.47368553]
[1769444161342,0.01145869,87270.0,87258.0,0.02277083]
[1769444161558,0.01145869,87270.0,87259.0,0.17608]
[1769444161559,0.01145895,87268.0,87259.0,0.17608]
[1769444161768,0.47957128,87278.0,87260.0,0.17608]
[1769444161769,0.01145908,87267.0,87260.0,0.17608]
[1769444161971,0.01145908,87267.0,87260.0,0.16468699]
[1769444162177,0.01145974,87262.0,87258.0,0.00730063]
[1769444162437,0.01145856,87271.0,87261.0,0.00360699]
[1769444162662,0.01145869,87270.0,87259.0,0.17608]
[1769444162888,0.06875168,87271.0,87260.0,0.47368553]
[1769444162889,0.01145856,87271.0,87260.0,0.47368553]
[1769444163107,0.01145816,87274.0,87260.0,0.47368553]
[1769444163108,0.05729111,87274.0,87260.0,0.47368553]
[1769444163325,0.04145816,87274.0,87262.0,0.47368553]
[1769444163539,0.04145816,87274.0,87261.0,0.19885083]
[1769444163540,0.03,87272.0,87263.0,0.17608]
[1769444163785,0.01145685,87284.0,87264.0,0.47368553]
[1769444163996,0.01145672,87285.0,87266.0,0.47368553]
[1769444163997,0.01134672,87285.0,87266.0,0.47368553]
[1769444164223,0.01145829,87273.0,87266.0,0.49645636]
[1769444164444,0.0114575,87279.0,87267.0,0.17612]
[1769444164654,0.03,87276.0,87268.0,0.47368553]
[1769444165124,0.01145698,87283.0,87268.0,0.47368553]
[1769444165358,0.01145698,87283.0,87267.0,0.17612]
[1769444165359,0.01145711,87282.0,87270.0,0.47368553]
[1769444165563,0.0114579,87276.0,87270.0,0.47368553]
[1769444165780,0.05728878,87278.0,87270.0,0.47368553]
[1769444165781,0.06874695,87277.0,87270.0,0.47368553]
[1769444165997,0.01145711,87282.0,87270.0,0.47368553]
[1769444166208,0.01145724,87281.0,87270.0,0.47368553]
[1769444166440,0.01145737,87280.0,87270.0,0.47368553]
[1769444166652,0.01145724,87281.0,87270.0,0.47368553]
[1769444166857,0.03,87280.0,87270.0,0.47368553]
[1769444167068,0.04145737,87280.0,87270.0,0.47368553]
[1769444167281,0.0114575,87279.0,87270.0,0.47368553]
[1769444167486,0.03,87275.0,87270.0,0.47368553]
[1769444167720,0.01145645,87287.0,87270.0,0.49645636]
[1769444167939,0.01145645,87287.0,87275.0,0.01]
[1769444168139,0.01145632,87288.0,87275.0,0.01]
[1769444168339,0.01145645,87287.0,87275.0,0.01]
[1769444168652,0.03,87286.0,87275.0,0.01]
[1769444169006,0.01145501,87298.0,87277.0,0.02277083]
[1769444169207,0.01145593,87291.0,87279.0,0.02277083]
[1769444169405,0.03,87293.0,87280.0,0.47368553]
[1769444169609,0.03,87293.0,87281.0,0.17612]
[1769444170269,0.05727525,87298.0,87281.0,0.17612]
[1769444170270,0.08887316,87325.0,87284.0,0.47368553]
[1769444170584,0.08887316,87325.0,87281.0,0.17612]
[1769444170585,0.03,87311.0,87297.0,0.49645636]
[1769444170789,0.03,87311.0,87299.0,0.47368553]
[1769444171206,0.03,87304.0,87298.0,0.17612]
[1769444171411,0.03,87304.0,87300.0,0.47368553]
[1769444171631,0.03,87304.0,87299.0,0.64980553]
[1769444172055,0.01145213,87320.0,87300.0,0.47368553]
[1769444172262,0.03,87321.0,87305.0,0.47368553]
[1769444172464,0.02289267,87329.0,87305.0,0.47368553]
[1769444172465,0.03,87317.0,87305.0,0.47368553]
[1769444173058,0.03,87317.0,87305.0,0.49645636]
[1769444173289,0.01145186,87322.0,87308.0,0.02277083]
[1769444173479,0.03,87319.0,87308.0,0.49645636]
[1769444174205,0.04145226,87319.0,87308.0,0.49645636]
[1769444174364,0.25191355,87329.0,87308.0,0.49645636]
[1769444174365,0.03,87318.0,87308.0,0.49645636]
[1769444174522,0.01145029,87334.0,87318.0,0.01]
[1769444174728,0.01145121,87327.0,87318.0,0.01]
[1769444174939,0.01145134,87326.0,87315.0,0.47368553]
[1769444175136,0.01145173,87323.0,87315.0,0.47368553]
[1769444175354,0.03,87326.0,87315.0,0.47368553]
[1769444175567,0.03,87323.0,87315.0,0.47368553]
[1769444175782,0.03,87318.0,87313.0,0.17612]
[1769444175996,0.03,87318.0,87314.0,0.47368553]
[1769444176851,0.03,87325.0,87314.0,0.47368553]
[1769444177135,0.03,87325.0,87315.0,0.17608]
[1769444177785,0.03,87323.0,87315.0,0.17608]
[1769444178002,0.03,87321.0,87315.0,0.17608]
[1769444179052,0.0114516,87324.0,87315.0,0.17608]
[1769444179053,0.03,87320.0,87315.0,0.17608]
[1769444179306,0.00607397,87322.0,87315.0,0.69153738]
[1769444179499,0.01145199,87321.0,87311.0,0.52115039]
[1769444179656,0.00607397,87322.0,87311.0,0.52115039]
[1769444179859,0.04588,87345.0,87311.0,0.52115039]
[1769444180080,0.03,87323.0,87311.0,0.54517616]
[1769444180283,0.03,87316.0,87299.0,0.02402577]
[1769444180546,0.02321494,87323.0,87316.0,0.01]
[1769444180762,0.01145199,87321.0,87316.0,0.005]
[1769444180977,0.01145199,87321.0,87307.0,0.52115039]
[1769444180978,0.01145226,87319.0,87307.0,0.51666817]
[1769444181428,0.04145278,87315.0,87307.0,0.51666817]
[1769444181644,0.04145278,87315.0,87281.0,0.04123357]
[1769444181645,0.03,87301.0,87279.0,0.02402577]
[1769444181865,0.03,87301.0,87286.0,0.52115039]
[1769444182083,0.03,87301.0,87264.0,0.01145947]
[1769444182084,0.01145619,87289.0,87277.0,0.02402577]
[1769444182308,0.01145554,87294.0,87277.0,0.54517616]
[1769444182530,0.04145567,87293.0,87277.0,0.54517616]
[1769444182753,0.03,87293.0,87277.0,0.54517616]
[1769444183386,0.03,87292.0,87277.0,0.54517616]
[1769444184549,0.03,87291.0,87277.0,0.54517616]
[1769444185394,0.03,87306.0,87282.0,0.02402577]
[1769444185593,0.04145436,87303.0,87285.0,0.54517616]
[1769444185801,0.03,87303.0,87285.0,0.54517616]
[1769444186413,0.04145436,87303.0,87285.0,0.54517616]
[1769444186694,0.03,87299.0,87285.0,0.54517616]
[1769444186917,0.03,87299.0,87238.0,0.45851346]
[1769444186918,0.03,87284.0,87270.0,0.52115039]
[1769444187273,0.22907917,87307.0,87270.0,0.52115039]
[1769444187274,0.02321494,87305.0,87272.0,0.52115039]
[1769444187476,0.02321494,87315.0,87280.0,0.48417481]
[1769444187676,0.03466772,87315.0,87287.0,0.02402577]
[1769444187850,0.03466772,87315.0,87290.0,0.52115039]
[1769444187851,0.03,87314.0,87290.0,0.52115039]
[1769444188075,0.03,87314.0,87294.0,0.52115039]
[1769444188483,0.03,87314.0,87287.0,0.17608]
[1769444188484,0.03,87314.0,87291.0,0.52115039]
[1769444188694,0.03,87314.0,87293.0,0.52115039]
[1769444188994,0.03,87314.0,87287.0,0.18753645]
[1769444188995,0.03,87309.0,87297.0,0.52115039]
[1769444189383,0.03,87309.0,87287.0,0.17608]
[1769444189384,0.02321494,87340.0,87309.0,0.01145357]
[1769444189586,0.02321494,87340.0,87317.0,0.52115039]
[1769444189826,0.01144845,87348.0,87320.0,0.02402577]
[1769444190024,0.01144832,87349.0,87320.0,0.02402577]
[1769444190025,0.03,87349.0,87323.0,0.52115039]
[1769444190234,0.03,87349.0,87325.0,0.52115039]
[1769444190443,0.03,87349.0,87325.0,0.54517616]
[1769444190656,0.0305414,87344.0,87325.0,0.54517616]
[1769444190863,0.04144924,87342.0,87325.0,0.54517616]
[1769444191086,0.03,87335.0,87325.0,0.54517616]
[1769444191604,0.03,87335.0,87325.0,0.52115039]
[1769444192085,0.03,87334.0,87325.0,0.52115039]
[1769444192286,0.00652045,87343.0,87325.0,0.52115039]
[1769444192524,0.00872006,87342.0,87325.0,0.52115039]
[1769444192675,0.01144832,87349.0,87325.0,0.52115039]
[1769444192676,0.01144754,87355.0,87325.0,0.02086006]
[1769444192876,0.01144767,87354.0,87328.0,0.52115039]
[1769444193082,0.03,87351.0,87330.0,0.54201045]
[1769444193282,0.03,87347.0,87331.0,0.52115039]
[1769444193611,0.03,87343.0,87331.0,0.52115039]
[1769444194580,0.03,87342.0,87331.0,0.52115039]
[1769444194777,0.03,87342.0,87310.0,0.48417481]
[1769444194977,0.03,87342.0,87314.0,0.52115039]
[1769444195248,0.03,87340.0,87314.0,0.02086006]
[1769444195430,0.03,87340.0,87317.0,0.52115039]
[1769444195583,0.03,87340.0,87320.0,0.02086006]
[1769444195784,0.03,87340.0,87321.0,0.52115039]
[1769444195980,0.03,87338.0,87321.0,0.54201045]
[1769444196187,0.04144976,87338.0,87321.0,0.54201045]
[1769444196535,0.03,87338.0,87321.0,0.54201045]
[1769444197079,0.03,87337.0,87321.0,0.54201045]
[1769444197318,0.03,87337.0,87322.0,0.52115039]
[1769444198149,0.03,87321.0,87300.0,0.02086006]
[1769444198429,0.03,87309.0,87298.0,0.04584]
[1769444198596,0.03643599,87309.0,87298.0,0.04584]
[1769444199349,0.03,87308.0,87300.0,0.001]
[1769444199803,0.03,87308.0,87298.0,0.04584]
[1769444200362,0.00643599,87309.0,87298.0,0.04584]
[1769444200946,0.03,87304.0,87290.0,0.17604]
[1769444201122,0.02321494,87300.0,87297.0,0.00687265]
[1769444201355,0.02118322,87300.0,87282.0,0.52115039]
[1769444201554,0.01110546,87299.0,87282.0,0.52115039]
[1769444201724,0.19256223,87304.0,87282.0,0.52115039]
[1769444202121,0.03,87303.0,87282.0,0.52115039]
[1769444203094,0.03,87302.0,87282.0,0.52115039]
[1769444203757,0.03,87300.0,87276.0,0.19690006]
[1769444203950,0.03,87291.0,87277.0,0.52115039]
[1769444204362,0.03,87291.0,87267.0,0.0005134]
[1769444204363,0.03895335,87285.0,87284.0,0.02978615]
[1769444204588,0.22912548,87289.0,87265.0,0.01885315]
[1769444204589,0.03,87279.0,87265.0,0.01885315]
[1769444205899,0.03,87284.0,87265.0,0.54000354]
[1769444206098,0.04145685,87284.0,87265.0,0.54000354]
[1769444206365,0.03,87284.0,87265.0,0.54000354]
[1769444206774,0.02321494,87288.0,87265.0,0.54000354]
[1769444207057,0.03,87291.0,87271.0,0.52115039]
[1769444207236,0.03,87291.0,87274.0,0.02402577]
[1769444207442,0.03,87291.0,87265.0,0.02402577]
[1769444207645,0.03,87291.0,87260.0,0.48417481]
[1769444207827,0.50856403,87291.0,87260.0,0.48417481]
[1769444208032,0.03,87287.0,87262.0,0.54517616]
[1769444208233,0.04145685,87284.0,87262.0,0.54517616]
[1769444208435,0.03,87282.0,87262.0,0.54517616]
[1769444208635,0.03,87280.0,87262.0,0.54517616]
[1769444208837,0.03,87280.0,87261.0,0.46256184]
[1769444209038,0.03,87280.0,87264.0,0.02285589]
[1769444209240,0.03,87280.0,87265.0,0.46256184]
[1769444209459,0.02321494,87288.0,87268.0,0.02285589]
[1769444209673,0.03,87288.0,87269.0,0.48541773]
[1769444210013,0.03,87288.0,87271.0,0.48541773]
[1769444210336,0.02408615,87279.0,87272.0,0.02285589]
[1769444210537,0.02408615,87279.0,87260.0,0.49563481]
[1769444210538,0.03,87278.0,87276.0,0.02285589]
[1769444210783,0.03,87278.0,87277.0,0.46256184]
[1769444210988,0.02408615,87279.0,87278.0,0.47256184]
[1769444211191,0.02408615,87279.0,87259.0,0.0687608]
[1769444211192,0.05728672,87281.0,87259.0,0.17608]
[1769444211388,0.03,87275.0,87256.0,0.46256184]
[1769444211550,0.03,87275.0,87257.0,0.17608]
[1769444211755,0.03,87275.0,87259.0,0.02285589]
[1769444211993,0.03,87275.0,87262.0,0.46256184]
[1769444212172,0.06874225,87283.0,87275.0,0.03]
[1769444212173,0.01145698,87283.0,87275.0,0.03]
[1769444212351,0.03,87282.0,87275.0,0.02]
[1769444213310,0.03,87282.0,87267.0,0.46256184]
[1769444213468,0.02291657,87289.0,87267.0,0.46256184]
[1769444213469,0.03,87281.0,87267.0,0.46256184]
[1769444214445,0.02291657,87289.0,87267.0,0.46256184]
[1769444214446,0.03,87280.0,87267.0,0.46256184]
[1769444215515,0.03,87279.0,87267.0,0.46256184]
[1769444216103,0.03,87279.0,87263.0,0.02285589]
[1769444216737,0.02291657,87284.0,87266.0,0.46256184]
[1769444217004,0.13310223,87334.0,87257.0,0.17608]
[1769444217005,0.08018932,87302.0,87280.0,0.46256184]
[1769444217223,0.01145514,87297.0,87282.0,0.46256184]
[1769444217439,0.06873019,87298.0,87282.0,0.46256184]
[1769444217639,0.03,87301.0,87281.0,0.02285589]
[1769444217787,0.03,87301.0,87285.0,0.02285589]
[1769444217979,0.48621416,87315.0,87288.0,0.46256184]
[1769444218222,0.48621416,87315.0,87292.0,0.46256184]
[1769444218404,0.01145278,87315.0,87294.0,0.46256184]
[1769444218626,0.03,87318.0,87295.0,0.02285589]
[1769444218786,0.03,87316.0,87296.0,0.48541773]
[1769444219412,0.03,87316.0,87297.0,0.02285589]
[1769444219665,0.03,87313.0,87299.0,0.02285589]
[1769444220398,0.03,87306.0,87296.0,0.17612]
[1769444221318,0.03,87306.0,87278.0,0.06874474]
[1769444221319,0.03,87295.0,87270.0,0.04588]
[1769444221514,0.03,87290.0,87273.0,0.01145829]
[1769444221857,0.01145383,87307.0,87290.0,0.01]
[1769444222001,0.48621416,87310.0,87290.0,0.01]
[1769444222203,0.48621416,87318.0,87293.0,0.46256184]
[1769444222455,0.09871392,87319.0,87296.0,0.02285589]
[1769444222621,0.09871392,87319.0,87296.0,0.17608]
[1769444222622,0.03,87314.0,87296.0,0.17608]
[1769444222823,0.03,87314.0,87297.0,0.46256184]
[1769444223031,0.5663895,87323.0,87299.0,0.48541773]
[1769444223032,0.03,87312.0,87299.0,0.48541773]
[1769444223351,0.03,87312.0,87296.0,0.17608]
[1769444223569,0.03,87306.0,87295.0,0.17608]
[1769444224058,0.02291657,87317.0,87306.0,0.01]
[1769444224205,0.48621416,87319.0,87306.0,0.01]
[1769444224424,0.49766642,87319.0,87306.0,0.01]
[1769444224647,0.03,87316.0,87299.0,0.02285589]
[1769444224867,0.03,87306.0,87295.0,0.17608]
[1769444225792,0.51621416,87305.0,87276.0,0.04584]
[1769444226005,0.51621416,87301.0,87278.0,0.02285589]
[1769444226209,0.51621416,87301.0,87278.0,0.48541773]
[1769444226406,0.03,87299.0,87279.0,0.02285589]
[1769444226624,0.03,87299.0,87280.0,0.46256184]
[1769444226824,0.03,87299.0,87283.0,0.02285589]
[1769444227030,0.03,87299.0,87287.0,0.02285589]
[1769444227357,0.5778517,87310.0,87289.0,0.02285589]
[1769444227358,0.03,87307.0,87289.0,0.02285589]
[1769444227535,0.03,87305.0,87289.0,0.02285589]
[1769444227887,0.03,87301.0,87279.0,0.02285589]
[1769444228038,0.03,87299.0,87279.0,0.02285589]